bitfinex/quotes_ETHUSD_20250413
["timestamp","ask_amount","ask_price","bid_price","bid_amount"]
[1744566227608,6.15687,1624.2,1624.1,6.45562408]
[1744566227807,9.70687,1624.2,1624.1,4.08e-06]
[1744566228042,9.15687,1624.2,1624.1,4.08e-06]
[1744566228207,9.15763,1624.0,1623.9,4.96407641]
[1744566228407,19.62433,1624.0,1623.9,4.96407641]
[1744566228736,22.2025,1624.0,1623.9,4.96407641]
[1744566228938,9.70877,1623.7,1623.6,4.08e-06]
[1744566229160,0.615574,1624.4,1623.7,1.5873]
[1744566229358,7.74556,1625.0,1624.3,0.2]
[1744566229511,9.15519,1624.7,1624.4,0.2]
[1744566229714,9.413,1624.6,1624.4,0.2]
[1744566230128,9.413,1624.6,1624.5,0.2]
[1744566230461,6.15427,1624.9,1624.6,0.2]
[1744566230754,6.15536,1624.6,1624.4,1.84885046]
[1744566231064,0.615427,1624.8,1624.4,0.2]
[1744566231065,9.413,1624.5,1624.4,0.2]
[1744566233334,9.413,1624.5,1624.4,6.35611]
[1744566233530,9.413,1624.5,1624.4,0.26155371]
[1744566233830,9.413,1624.5,1624.4,0.2]
[1744566234031,9.413,1624.5,1624.4,6.35611]
[1744566234231,6.66510508,1624.5,1624.4,6.35611]
[1744566235171,13.48736559,1624.5,1624.1,0.2]
[1744566235360,6.15646,1624.4,1624.2,0.2]
[1744566235526,7.25714556,1624.5,1624.1,0.2]
[1744566235856,6.15672,1624.3,1624.2,0.2]
[1744566236075,7.388035,1624.3,1624.1,0.2]
[1744566236255,7.388035,1624.3,1624.2,0.2]
[1744566236460,7.388035,1624.3,1624.1,0.2]
[1744566236638,6.15687,1624.2,1624.1,0.2]
[1744566237358,6.15691,1624.2,1624.1,0.2]
[1744566237563,6.15687,1624.2,1624.1,0.2]
[1744566237763,7.387845,1624.3,1624.1,0.2]
[1744566237935,9.412,1624.3,1624.1,0.2]
[1744566238260,3.91458704,1624.3,1624.1,0.26156547]
[1744566238459,10.07133704,1624.3,1624.1,0.26156547]
[1744566238635,6.15687,1624.2,1624.0,0.2]
[1744566238841,6.15801,1623.9,1623.7,0.2]
[1744566239049,6.15779,1624.0,1623.7,0.2]
[1744566239261,6.15779,1624.0,1623.9,0.2]
[1744566239558,6.15728,1624.1,1623.9,0.2]
[1744566239865,6.773358,1624.0,1623.9,0.2]
[1744566240362,6.15826,1623.9,1623.7,0.2]
[1744566240569,0.615728,1624.0,1623.8,0.2]
[1744566240862,6.15839,1623.8,1623.7,0.2]
[1744566241061,3.0,1624.2,1623.8,0.2]
[1744566241062,6.15777,1624.0,1623.8,0.2]
[1744566241265,6.15801,1623.9,1623.7,0.2]
[1744566241466,3.0,1624.2,1623.9,0.2]
[1744566241467,15.56889,1624.2,1623.9,0.2]
[1744566241663,9.412,1624.2,1624.0,0.2]
[1744566241970,9.412,1624.2,1624.0,12.5176095]
[1744566242268,9.412,1624.3,1624.0,12.57917677]
[1744566242475,16.53640569,1624.3,1624.0,6.3599995]
[1744566242659,6.15702,1624.2,1624.0,6.3599995]
[1744566242859,6.15725,1624.1,1624.0,6.3599995]
[1744566243270,6.15702,1624.2,1624.0,6.3599995]
[1744566243464,16.53638569,1624.3,1624.0,6.3599995]
[1744566243465,7.12438569,1624.3,1624.0,6.3599995]
[1744566243653,9.413,1624.3,1624.2,0.2]
[1744566243860,5.09311119,1624.3,1624.2,0.2]
[1744566244080,6.15626,1624.4,1624.2,0.39237249]
[1744566244270,16.25153705,1624.4,1624.2,0.39237249]
[1744566244472,1.9771705,1626.6,1626.1,6.14935]
[1744566244648,0.4040705,1626.6,1626.3,6.34892]
[1744566244843,0.4040705,1626.6,1626.3,6.60246861]
[1744566245179,0.4040705,1626.6,1626.3,0.3920673]
[1744566245387,6.5519105,1626.6,1626.3,0.58443979]
[1744566245583,6.1484,1626.5,1626.3,0.38443979]
[1744566245767,6.1484,1626.5,1626.3,0.39237249]
[1744566245973,6.78538,1626.4,1626.3,0.39237249]
[1744566246171,0.63684,1626.4,1626.3,0.39237249]
[1744566246353,0.02,1626.4,1626.3,0.2]
[1744566248187,6.5220305,1626.6,1626.3,0.2]
[1744566248480,6.5220305,1626.6,1626.4,0.2]
[1744566248689,0.02,1627.4,1626.5,2.119]
[1744566248886,1.5731,1628.8,1628.1,0.2]
[1744566249188,6.13836,1629.1,1628.2,6.34175]
[1744566249395,2.02725089,1629.3,1628.2,6.40314792]
[1744566249564,5e-07,1628.4,1628.3,0.2]
[1744566249761,5e-07,1628.4,1628.3,6.34137]
[1744566250285,0.0430759,1629.2,1628.8,0.2]
[1744566250460,0.0430759,1629.2,1628.4,1.769]
[1744566250664,6.13968,1628.8,1628.6,0.2]
[1744566250890,6.14085,1628.5,1628.3,0.2]
[1744566251054,6.14085,1628.5,1628.4,0.2]
[1744566251249,6.14058,1628.6,1628.4,0.2]
[1744566251586,6.14326,1627.8,1627.7,0.2]
[1744566251761,6.14412,1627.6,1627.4,0.2]
[1744566251963,6.13948,1628.8,1628.3,0.2]
[1744566252287,6.13983,1628.8,1628.5,0.2]
[1744566252486,6.14051,1628.6,1628.4,0.2]
[1744566252652,6.14051,1628.6,1627.8,1.569]
[1744566252653,6.14062,1628.5,1628.2,0.2]
[1744566252847,10.539,1628.6,1628.4,0.2]
[1744566253075,16.67953,1628.6,1628.5,0.2]
[1744566253272,6.14099,1628.4,1628.3,0.2]
[1744566253672,6.14099,1628.4,1627.8,1.569]
[1744566253673,6.14266,1628.0,1627.8,0.2]
[1744566253886,16.68166,1628.0,1627.9,0.2]
[1744566254067,18.96405,1628.0,1627.9,0.2]
[1744566254265,18.96405,1628.0,1627.7,0.2]
[1744566254266,6.14326,1627.8,1627.7,0.2]
[1744566254562,6.1429,1627.9,1627.7,0.2]
[1744566254761,6.14197,1628.2,1628.0,0.2]
[1744566254983,6.14023,1628.7,1628.3,0.2]
[1744566255183,6.754273,1628.6,1628.5,0.2]
[1744566255388,6.754273,1628.6,1628.1,7.67347]
[1744566255389,0.614023,1628.6,1628.3,0.2]
[1744566255584,6.14026,1628.6,1628.4,0.2]
[1744566255789,6.14099,1628.4,1628.3,0.2]
[1744566255982,16.99451,1628.8,1628.1,0.2]
[1744566256178,10.855,1628.8,1628.2,0.2]
[1744566256484,6.14022,1628.7,1628.6,0.2]
[1744566256685,7.839512,1628.7,1628.5,0.2]
[1744566257094,1.699522,1628.7,1628.6,0.2]
[1744566257260,7.839382,1628.7,1628.6,0.2]
[1744566257591,6.14099,1628.4,1628.1,0.2]
[1744566257789,6.14239,1628.1,1628.0,0.2]
[1744566258087,0.614239,1628.1,1628.0,0.2]
[1744566258262,16.99376,1628.2,1628.1,0.2]
[1744566258468,23.13586,1628.2,1628.1,0.2]
[1744566258695,6.14212,1628.1,1628.0,0.2]
[1744566258990,6.14363,1627.7,1627.5,0.2]
[1744566259183,6.14401,1627.6,1627.5,0.2]
[1744566259495,6.14439,1627.5,1627.4,0.2]
[1744566259659,6.14514,1627.3,1627.2,0.2]
[1744566259989,6.14665,1626.9,1626.7,0.2]
[1744566260175,6.14785,1626.6,1626.2,1.6493]
[1744566260491,6.14858,1626.4,1626.3,0.2]
[1744566260655,6.14822,1626.5,1626.4,0.2]
[1744566260855,6.14892,1626.3,1626.2,0.2]
[1744566261686,10.851,1626.4,1626.2,0.2]
[1744566261896,10.851,1626.4,1626.3,0.2]
[1744566262058,9.14741,1626.7,1626.4,0.2]
[1744566262262,0.614762,1626.6,1626.5,0.2]
[1744566262578,6.14779,1626.6,1626.5,0.2]
[1744566262764,11.465665,1626.9,1626.7,0.2]
[1744566262959,6.14703,1626.8,1626.7,0.2]
[1744566263362,6.14703,1626.8,1626.4,0.2]
[1744566263589,6.14792,1626.6,1626.5,0.2]
[1744566263985,6.1493,1626.2,1626.1,0.02]
[1744566264190,17.0023,1626.2,1626.1,0.02]
[1744566265482,10.853,1626.2,1626.1,0.02]
[1744566265684,6.15119,1625.7,1625.1,0.02]
[1744566265888,17.00493,1625.6,1625.1,6.17345]
[1744566266095,6.15235,1625.4,1625.1,0.02]
[1744566266406,6.15277,1625.3,1625.1,0.02]
[1744566266707,6.15308,1625.2,1625.1,0.02]
[1744566267414,12.30577,1625.3,1625.1,0.02]
[1744566267580,17.00466,1625.6,1625.1,0.02]
[1744566267581,10.855,1625.5,1625.2,6.1529]
[1744566267910,17.00695,1625.5,1625.2,0.06151965]
[1744566268109,3.0,1626.0,1625.2,0.06151965]
[1744566268110,3.0,1626.0,1625.4,6.15217]
[1744566268308,3.0,1626.0,1625.5,6.21321113]
[1744566268309,6.15046,1625.9,1625.5,6.21321113]
[1744566268481,6.15066,1625.9,1625.5,6.21338113]
[1744566268683,17.00529,1626.0,1625.6,6.15149]
[1744566268981,17.00522,1626.0,1625.5,6.21320113]
[1744566269296,17.00522,1626.0,1625.6,6.15155]
[1744566269480,17.00522,1626.0,1625.4,1.5565]
[1744566269481,6.15083,1625.8,1625.4,1.5565]
[1744566269681,6.15047,1625.9,1625.4,1.5565]
[1744566269890,6.15049,1625.9,1625.5,6.1518]
[1744566270082,17.00507,1626.0,1625.5,6.1518]
[1744566270275,10.855,1626.0,1625.4,1.5565]
[1744566270477,6.15135,1625.7,1625.4,1.5565]
[1744566270795,6.15135,1625.7,1625.2,6.15287]
[1744566270796,6.15171,1625.6,1625.2,6.15287]
[1744566270985,6.15226,1625.5,1625.1,6.17343]
[1744566271299,6.15194,1625.6,1625.1,6.17328]
[1744566271464,6.15199,1625.5,1625.1,6.17328]
[1744566272066,6.1522,1625.5,1625.1,6.17328]
[1744566272383,6.15287,1625.3,1625.1,0.02]
[1744566272588,6.15308,1625.2,1625.1,0.02]
[1744566273184,10.859,1625.4,1625.2,6.15277]
[1744566273391,6.15171,1625.6,1625.3,6.15271]
[1744566273585,6.15171,1625.6,1625.2,6.15277]
[1744566273818,0.615171,1625.6,1625.1,6.17325]
[1744566274000,6.15157,1625.6,1625.1,0.02]
[1744566274317,6.15124,1625.7,1625.3,6.15248]
[1744566274470,6.15308,1625.2,1625.1,0.02]
[1744566274670,6.15273,1625.3,1625.1,0.02]
[1744566274866,6.15134,1625.7,1625.3,6.15236]
[1744566275109,6.1516,1625.6,1625.2,6.21454898]
[1744566275272,6.15234,1625.4,1625.1,6.17342]
[1744566275467,17.00981,1625.8,1625.4,6.1522]
[1744566275668,6.15146,1625.7,1625.2,0.06152126]
[1744566275981,3.01412397,1627.4,1625.3,18.4599995]
[1744566276184,6.13884,1629.0,1628.3,7.69784]
[1744566276380,0.02,1629.4,1628.3,1.5565]
[1744566276581,0.02,1629.4,1628.9,6.13884]
[1744566276793,12.7,1629.4,1628.3,1.5565]
[1744566277010,6.1376,1629.3,1628.3,1.5565]
[1744566277172,0.61376,1629.2,1628.3,1.5565]
[1744566277369,6.13939,1628.9,1627.7,7.69985]
[1744566277601,19.15951,1628.8,1627.8,12.28603]
[1744566277906,52.758,1628.7,1627.8,12.28603]
[1744566278093,52.758,1628.7,1627.9,0.06141739]
[1744566278265,52.758,1628.7,1627.9,6.20420739]
[1744566278266,5.2758,1628.6,1627.9,6.20420739]
[1744566278706,5.2758,1628.6,1628.0,0.19189426]
[1744566278893,13.014,1628.5,1628.0,0.19189426]
[1744566279499,3.0,1628.4,1628.0,0.19189426]
[1744566279813,0.55,1628.9,1628.0,0.19189426]
[1744566279814,0.3684664,1629.8,1628.7,1.5565]
[1744566280021,0.3684664,1629.8,1629.4,6.13688]
[1744566280323,0.3684664,1629.8,1629.7,6.13609]
[1744566280826,0.02,1630.4,1629.8,1.5565]
[1744566281027,0.02,1630.4,1630.1,6.13456]
[1744566281203,0.02,1630.4,1629.8,1.5565]
[1744566281204,13.014,1630.3,1629.8,1.5565]
[1744566281689,13.014,1630.3,1629.9,6.13499]
[1744566281889,13.014,1630.3,1629.7,0.19170933]
[1744566282092,6.13572,1629.8,1629.7,0.19170933]
[1744566282395,9.68572,1629.8,1629.7,0.19170933]
[1744566282589,0.55,1629.6,1628.5,1.5565]
[1744566282795,6.13939,1628.9,1628.2,6.14151]
[1744566283123,6.14012,1628.7,1628.1,7.6986]
[1744566283297,53.317012,1628.6,1628.1,1.5565]
[1744566283646,53.317012,1628.6,1628.0,12.28448]
[1744566283829,53.317012,1628.6,1628.0,6.14218]
[1744566283995,59.457472,1628.6,1628.0,6.14218]
[1744566284337,58.87065064,1628.6,1628.0,6.14218]
[1744566284539,5.88706506,1628.5,1628.0,6.14218]
[1744566284890,12.02780506,1628.5,1627.9,6.14277]
[1744566285091,5.88706506,1628.5,1627.8,6.14294]
[1744566285424,6.14389,1627.7,1627.1,6.16588]
[1744566285729,6.14494,1627.4,1627.1,0.02]
[1744566285933,13.005,1627.5,1627.1,0.02]
[1744566286114,7.24484077,1628.6,1627.1,0.02]
[1744566286115,5.88706506,1628.5,1627.1,0.02]
[1744566286427,9.14163,1628.3,1627.7,6.14327]
[1744566286794,6.14232,1628.1,1627.6,0.06143033]
[1744566287035,9.14163,1628.3,1627.8,6.14321]
[1744566287195,3.0,1628.3,1627.5,6.14412]
[1744566287395,6.14254,1628.0,1627.5,6.14412]
[1744566287593,6.14175,1628.2,1627.6,6.1438]
[1744566287793,14.6514,1628.4,1627.3,6.14514]
[1744566288007,14.64622875,1628.4,1628.0,6.14246]
[1744566288233,14.64622875,1628.4,1628.1,6.14208]
[1744566288391,6.14154,1628.3,1627.8,6.14301]
[1744566288819,20.78756875,1628.4,1627.8,6.14301]
[1744566288820,20.78756875,1628.4,1627.9,6.14288]
[1744566288993,14.64622875,1628.4,1628.0,6.14249]
[1744566289428,7.60610288,1628.3,1627.8,6.1432]
[1744566289732,6.14176,1628.2,1627.7,6.14338]
[1744566290029,6.14233,1628.1,1627.6,6.2052066]
[1744566290231,6.14233,1628.1,1627.6,6.14378]
[1744566290431,13.513218,1628.1,1627.6,6.14378]
[1744566290730,7.370738,1628.1,1627.6,12.2876]
[1744566290939,7.370738,1628.1,1627.7,6.14346]
[1744566291142,6.14256,1628.0,1627.6,6.14378]
[1744566291337,6.14256,1628.0,1627.5,6.14438]
[1744566291496,6.8796568,1628.0,1627.5,6.14438]
[1744566291847,6.8796568,1628.0,1627.3,6.1449]
[1744566291848,12.28703,1627.8,1627.3,6.1449]
[1744566292000,15.62198085,1627.7,1627.3,6.1449]
[1744566292200,9.47827085,1627.7,1627.3,12.28978]
[1744566292429,9.47827085,1627.7,1627.4,6.20617022]
[1744566292635,9.47827085,1627.7,1627.3,6.14488]
[1744566292817,6.14425,1627.6,1627.2,7.70202]
[1744566293002,11.04043894,1627.7,1627.1,0.02]
[1744566293196,63.73443894,1627.7,1627.1,0.02]
[1744566293444,6.14479,1627.4,1627.1,0.02]
[1744566293602,12.28984,1627.4,1627.1,0.02]
[1744566294037,6.14479,1627.4,1627.1,0.02]
[1744566294239,1.228984,1627.4,1627.1,0.02]
[1744566294441,6.14468,1627.5,1627.1,6.16583]
[1744566294644,6.14424,1627.6,1627.2,6.14534]
[1744566294833,6.14424,1627.6,1627.2,6.14528]
[1744566295014,6.14424,1627.6,1627.2,12.29056]
[1744566295216,6.14424,1627.6,1627.2,6.14528]
[1744566295548,62.17227085,1627.7,1627.1,0.02]
[1744566295847,6.14453,1627.5,1627.1,6.16566]
[1744566296051,6.14453,1627.5,1627.1,0.02]
[1744566296252,6.13912,1628.9,1627.2,6.63082877]
[1744566296471,6.13851,1629.1,1628.7,6.13972]
[1744566296757,13.006,1629.2,1628.3,7.78324]
[1744566297050,6.13892,1629.0,1628.6,6.14001]
[1744566297350,6.14008,1628.7,1628.2,6.14154]
[1744566297554,19.14648,1628.6,1628.2,6.14154]
[1744566297850,19.14648,1628.6,1627.8,1.6422]
[1744566297851,6.1408,1628.5,1628.1,6.14212]
[1744566298345,13.006,1629.3,1627.9,6.14288]
[1744566298519,6.13987,1628.7,1628.3,6.14119]
[1744566298904,6.13953,1628.8,1628.4,0.061402]
[1744566299108,13.006,1628.7,1628.4,6.202352]
[1744566299600,6.13869,1629.1,1628.2,6.14174]
[1744566299601,3.0,1629.0,1628.2,6.14174]
[1744566299806,52.702,1629.5,1628.2,0.55]
[1744566300054,58.83887,1629.5,1629.1,6.13816]
[1744566300457,52.702,1629.5,1629.3,6.13733]
[1744566300605,6.13726,1629.4,1629.0,6.13857]
[1744566300811,6.13861,1629.1,1628.8,0.06137419]
[1744566301051,6.13935,1628.9,1628.4,7.65373]
[1744566301257,6.13895,1629.0,1628.6,6.14]
[1744566301544,13.004,1629.2,1628.4,7.71536594]
[1744566301749,6.14021,1628.7,1628.2,6.14147]
[1744566301906,6.14021,1628.7,1628.1,7.6551]
[1744566301907,6.14067,1628.5,1628.1,7.6551]
[1744566302105,6.14067,1628.5,1628.2,0.06140657]
[1744566302355,6.14142,1628.3,1627.9,6.14258]
[1744566302563,6.14195,1628.2,1627.7,6.1436]
[1744566302730,6.14267,1628.0,1627.6,6.14397]
[1744566302929,19.14487,1628.0,1627.6,6.20538937]
[1744566303128,6.14289,1627.9,1627.6,0.06141937]
[1744566303330,6.14289,1627.9,1627.5,13.92612]
[1744566303680,25.28739,1628.0,1627.6,6.20514146]
[1744566303862,6.14288,1627.9,1627.6,6.20514146]
[1744566304039,6.14288,1627.9,1627.6,0.06143146]
[1744566304244,19.14111,1628.9,1627.7,6.14363]
[1744566304556,6.14059,1628.6,1628.0,6.14218]
[1744566304768,6.14114,1628.4,1628.1,0.0614149]
[1744566304970,6.14114,1628.4,1628.0,6.2038693]
[1744566305170,6.14195,1628.2,1627.8,6.14321]
[1744566305371,6.14309,1627.9,1627.5,7.78179]
[1744566305530,6.14309,1627.9,1627.5,13.92588]
[1744566305728,6.14217,1628.1,1627.5,1.6376]
[1744566305939,6.14289,1627.9,1627.5,6.14436]
[1744566306139,8.056205,1628.2,1627.4,0.06143679]
[1744566306338,6.14391,1627.7,1627.2,13.92833]
[1744566306542,19.14602,1627.6,1627.2,7.78296]
[1744566306884,13.002,1627.6,1627.2,7.84455548]
[1744566307028,6.14441,1627.5,1627.1,6.16575]
[1744566307233,6.14495,1627.4,1627.1,0.08144852]
[1744566307473,6.14515,1627.3,1627.1,0.08144852]
[1744566307653,6.14515,1627.3,1627.1,0.02]
[1744566307968,6.14552,1627.2,1627.1,0.02]
[1744566309834,10.74692,1627.2,1627.1,0.02]
[1744566310443,9.14552,1627.2,1627.1,0.02]
[1744566311156,10.674587,1627.2,1627.1,0.02]
[1744566312578,9.14552,1627.2,1627.1,0.02]
[1744566317591,6.14552,1627.2,1627.1,0.02]
[1744566319111,6.14282,1628.0,1627.1,0.02]
[1744566319408,6.14258,1628.0,1627.6,6.14387]
[1744566319703,6.14258,1628.0,1627.6,12.28774]
[1744566320203,6.14178,1628.2,1627.8,6.14307]
[1744566320395,6.14137,1628.3,1627.3,6.14485]
[1744566320590,6.14137,1628.3,1627.5,6.14437]
[1744566320790,6.14304,1627.9,1627.5,6.14437]
[1744566320990,12.608,1627.8,1627.5,6.14437]
[1744566321182,6.14371,1627.7,1627.4,0.19196118]
[1744566321594,12.608,1627.8,1627.4,0.19196118]
[1744566321799,12.608,1627.8,1627.5,0.06143435]
[1744566322003,12.608,1627.8,1627.7,6.14363]
[1744566322310,6.14188,1628.2,1627.8,6.1431]
[1744566322501,12.28387,1628.2,1627.8,6.1431]
[1744566322705,6.14218,1628.1,1627.8,6.1431]
[1744566323204,6.14218,1628.1,1627.5,6.14437]
[1744566323205,6.14302,1627.9,1627.5,6.14419]
[1744566323394,6.14213,1628.1,1627.7,6.14334]
[1744566323719,52.719,1628.5,1628.3,6.14129]
[1744566323908,52.719,1628.5,1628.1,0.06140691]
[1744566324206,6.14141,1628.3,1628.1,6.1599995]
[1744566324569,52.707,1629.4,1628.2,0.06141755]
[1744566324773,5.2707,1629.3,1628.2,6.82506767]
[1744566324972,52.707,1629.4,1628.7,6.13965]
[1744566325172,58.84444,1629.4,1628.5,6.14061]
[1744566325376,52.707,1629.4,1629.1,6.13801]
[1744566325611,52.707,1629.4,1628.9,6.13891]
[1744566325612,58.84436,1629.4,1628.9,6.13891]
[1744566325908,52.707,1629.4,1629.0,0.0613779]
[1744566326113,0.005,1629.5,1629.4,6.13722]
[1744566326283,0.005,1629.5,1629.3,12.33618533]
[1744566326487,0.005,1629.5,1629.1,1.6066]
[1744566326813,6.13799,1629.2,1628.8,6.13944]
[1744566327114,6.13835,1629.1,1628.8,0.06138473]
[1744566327414,6.13799,1629.2,1628.8,0.06138473]
[1744566327578,6.13931,1628.9,1628.7,1.6066]
[1744566327775,6.13854,1629.1,1628.7,1.6066]
[1744566327975,12.890069,1629.2,1628.8,0.0613881]
[1744566328176,6.14093,1628.5,1628.2,1.6194]
[1744566328382,24.8838,1628.6,1628.2,7.76114]
[1744566328751,12.603,1628.6,1628.3,6.14121]
[1744566329015,6.13888,1629.0,1628.6,6.14022]
[1744566329194,12.603,1629.1,1628.4,6.14097]
[1744566329393,6.13877,1629.0,1628.5,0.0613931]
[1744566329620,12.27779,1629.0,1628.6,6.14022]
[1744566329824,2.5494771,1629.0,1628.4,6.14092]
[1744566330123,12.28114,1628.6,1628.2,1.6194]
[1744566330521,6.14062,1628.5,1628.2,1.6194]
[1744566330725,0.0613981,1628.8,1628.3,0.06140703]
[1744566330928,18.74138,1629.1,1628.7,6.13972]
[1744566331227,12.603,1629.1,1628.8,6.13934]
[1744566331421,12.603,1629.1,1628.8,7.75874]
[1744566332092,12.603,1629.1,1628.9,0.06138279]
[1744566332284,12.603,1629.1,1628.9,6.13886]
[1744566332520,52.691,1629.3,1629.0,6.13873]
[1744566332716,0.005,1629.5,1629.1,0.06137357]
[1744566332941,0.005,1629.5,1629.4,1.5592]
[1744566333142,0.005,1629.5,1629.4,7.69642]
[1744566333445,0.005,1629.5,1629.4,1.5592]
[1744566333764,0.005,1629.5,1629.4,7.75778117]
[1744566333947,0.005,1629.5,1629.4,1.5592]
[1744566334944,6.13742,1629.4,1629.1,1.5592]
[1744566335118,13.53948,1629.5,1629.1,7.6974]
[1744566335318,13.53948,1629.5,1629.1,1.5592]
[1744566335319,6.13735,1629.4,1629.1,1.5592]
[1744566335641,6.13735,1629.4,1629.1,1.62057402]
[1744566335849,0.005,1629.5,1629.3,6.13733]
[1744566336149,0.005,1629.5,1628.7,6.13984]
[1744566336150,6.13829,1629.2,1628.8,7.69856]
[1744566336303,7.4637881,1629.5,1628.9,6.13907]
[1744566336501,1.2655,1629.5,1629.1,6.13809]
[1744566336705,6.14189,1629.5,1629.1,6.13818]
[1744566336905,1e-05,1629.5,1629.4,6.13722]
[1744566337210,0.0608674,1630.0,1629.9,6.13534]
[1744566337652,0.02,1630.4,1630.3,6.13384]
[1744566337818,0.02,1630.4,1630.3,7.64144]
[1744566338207,0.005,1630.6,1630.5,8.19068]
[1744566338408,6.13072,1631.2,1630.7,6.13198]
[1744566338633,6.13084,1631.1,1630.7,6.13198]
[1744566338940,6.13299,1630.6,1630.1,7.6419]
[1744566339118,6.13402,1630.3,1629.8,12.27112]
[1744566339315,14.1069,1631.0,1630.3,6.13376]
[1744566339515,58.77929,1631.3,1630.8,7.63933]
[1744566339726,58.77929,1631.3,1630.5,1.5076]
[1744566339727,6.1322,1630.8,1630.5,1.5076]
[1744566339930,0.0613981,1631.0,1630.6,6.19371988]
[1744566340142,6.13083,1631.1,1630.5,1.5076]
[1744566340338,6.1336,1630.4,1630.1,1.5076]
[1744566340554,6.1942381,1630.6,1630.1,1.5076]
[1744566340718,6.13377,1630.4,1630.1,1.5076]
[1744566341020,17.1069,1631.2,1630.2,0.06133345]
[1744566341217,6.13135,1631.0,1630.6,1.5076]
[1744566341462,6.13084,1631.1,1630.7,6.19363071]
[1744566341665,6.13123,1631.0,1630.6,7.64007]
[1744566342127,1.5752981,1631.0,1630.3,1.5076]
[1744566342330,1.5752981,1631.0,1630.0,6.13487]
[1744566342331,1.5752981,1631.0,1630.0,1.5076]
[1744566342548,7.64718,1630.5,1629.7,1.5076]
[1744566342714,6.13537,1629.9,1629.7,1.5076]
[1744566342918,0.0613981,1630.2,1629.8,6.13554]
[1744566343115,6.13414,1630.3,1629.8,6.13549]
[1744566343439,0.0613981,1630.3,1629.7,1.5076]
[1744566343637,6.13549,1629.9,1629.7,1.5076]
[1744566343835,6.13612,1629.7,1629.4,1.5076]
[1744566344351,6.13572,1629.8,1629.4,1.5076]
[1744566344352,6.13587,1629.8,1629.5,0.06135873]
[1744566344518,6.1960681,1630.1,1629.7,6.13596]
[1744566344718,6.13389,1630.3,1629.8,6.19678017]
[1744566344949,6.13434,1630.2,1629.8,6.19678017]
[1744566345121,6.13487,1630.1,1629.7,6.13605]
[1744566345327,65.228,1630.4,1629.8,0.06134689]
[1744566345554,71.36146,1630.4,1630.1,1.5076]
[1744566345864,71.36146,1630.4,1630.1,7.64203]
[1744566345865,65.228,1630.4,1630.1,7.64203]
[1744566346548,1.5139,1630.8,1630.2,0.06133261]
[1744566346722,1.5139,1630.8,1629.8,6.13541]
[1744566346723,0.0613981,1630.7,1629.8,7.64315]
[1744566346927,6.13363,1630.4,1629.9,6.19646123]
[1744566347127,6.1950281,1630.4,1630.0,6.1349]
[1744566348150,6.1950281,1630.4,1629.9,6.19646123]
[1744566348151,6.13388,1630.3,1629.9,0.06134123]
[1744566348338,6.13448,1630.2,1629.9,0.06134123]
[1744566348667,1.23281481,1630.4,1630.0,12.26965]
[1744566348832,12.26674,1630.5,1630.1,6.19578724]
[1744566349033,6.13283,1630.6,1630.2,6.13407]
[1744566349256,0.0613981,1630.7,1630.2,6.19544049]
[1744566349561,6.13339,1630.5,1630.2,0.06133049]
[1744566349764,6.13272,1630.6,1630.2,6.19554049]
[1744566349930,6.75213181,1630.6,1630.2,0.06133049]
[1744566350133,12.26671,1630.5,1630.2,0.06133049]
[1744566350347,1.5139,1630.8,1630.2,6.13405]
[1744566350547,6.13292,1630.6,1630.2,6.13417]
[1744566350747,12.26747,1630.4,1630.0,6.13492]
[1744566350949,6.1946481,1630.5,1630.0,6.13492]
[1744566351153,0.61946481,1630.5,1629.9,6.19662785]
[1744566351333,12.6953981,1630.4,1629.8,7.64332]
[1744566351540,12.634,1630.4,1630.3,6.13384]
[1744566352239,1.5139,1631.5,1630.3,4.99182559]
[1744566352473,1.5752981,1631.8,1631.3,6.13008]
[1744566352641,0.0613981,1631.8,1631.3,7.6989684]
[1744566353042,12.634,1631.9,1631.3,7.6989684]
[1744566353243,12.634,1631.9,1631.3,7.82915136]
[1744566353428,0.02,1632.4,1631.6,7.63655]
[1744566353623,6.12678,1632.2,1631.6,7.63655]
[1744566353822,0.0813981,1632.4,1631.6,7.69782222]
[1744566354065,12.3337181,1632.4,1631.6,7.69782222]
[1744566354274,0.02,1632.4,1632.3,7.63392]
[1744566354435,0.02,1632.4,1632.3,7.82539136]
[1744566354634,0.02,1632.4,1632.3,1.69907136]
[1744566354956,0.02,1632.4,1632.3,7.82539136]
[1744566355198,14.1459,1633.6,1632.4,1.5076]
[1744566355400,20.26735,1633.6,1633.0,7.63109]
[1744566355574,14.1459,1633.6,1633.0,1.5076]
[1744566355904,6.14223,1633.4,1632.6,1.5076]
[1744566356070,6.14223,1633.4,1632.5,0.19147136]
[1744566356071,6.12462,1632.8,1632.5,0.19147136]
[1744566356267,7.18381133,1633.3,1632.8,6.12429]
[1744566356486,0.4063803,1633.3,1632.9,7.63137]
[1744566357009,0.4063803,1633.3,1633.0,0.06122305]
[1744566357212,0.4063803,1633.3,1633.0,6.12337]
[1744566357507,0.4063803,1633.3,1632.9,7.63164]
[1744566357706,0.4063803,1633.3,1632.9,7.63138]
[1744566357867,0.4063803,1633.3,1632.5,6.12554]
[1744566358063,6.12385,1633.0,1632.6,1.5154]
[1744566358265,6.1845781,1633.2,1632.7,6.12478]
[1744566358471,6.12376,1633.0,1632.6,1.5154]